bitfinex-derivatives/quotes_BNBF0:USTF0_20250425
["timestamp","ask_amount","ask_price","bid_price","bid_amount"]
[1745544419915,1.12679663,603.44,602.04,1.0564898]
[1745544420119,1.12679663,603.44,602.05,1.34073631]
[1745544420319,1.12679663,603.43,602.06,0.30473631]
[1745544421020,1.12679663,603.42,602.06,0.30473631]
[1745544421717,1.12679663,603.41,602.06,0.30473631]
[1745544422122,1.12679663,603.4,602.06,0.30473631]
[1745544422422,1.12679663,603.4,602.16,1.0564898]
[1745544422615,1.12679663,603.39,602.17,0.30474244]
[1745544422820,1.12679663,603.39,602.18,0.30474244]
[1745544423016,1.12679663,603.38,602.17,0.30474244]
[1745544423221,1.12679663,603.38,602.18,0.30474244]
[1745544423417,1.12679663,603.37,602.17,0.30474244]
[1745544423622,1.12679663,603.37,602.19,0.30474244]
[1745544423925,1.12679663,603.36,602.2,0.30474244]
[1745544424119,1.12679663,603.35,602.17,0.30474244]
[1745544424423,1.12679663,603.35,602.18,0.30474244]
[1745544424624,1.12679663,603.34,602.17,0.30474244]
[1745544424818,1.12679663,603.34,602.18,1.36374244]
[1745544425018,1.12679663,603.33,602.19,0.30474244]
[1745544425223,1.12679663,603.32,602.19,0.30474244]
[1745544425925,1.12679663,603.31,602.19,0.30474244]
[1745544426321,1.12679663,603.3,602.19,0.30474244]
[1745544426822,1.12679663,603.3,602.2,1.009]
[1745544427026,1.12679663,603.3,602.21,0.30474244]
[1745544427420,1.12679663,603.29,602.2,1.009]
[1745544427621,1.12679663,603.28,602.22,0.3047532]
[1745544427926,1.12679663,603.28,602.21,0.30477971]
[1745544428124,1.12679663,603.27,602.2,1.009]
[1745544428522,1.12679663,603.26,602.2,1.009]
[1745544428927,1.12679663,603.25,602.2,1.009]
[1745544429227,1.12679663,603.24,602.2,1.009]
[1745544429728,1.12679663,603.23,602.2,1.009]
[1745544430328,1.12679663,603.22,602.2,1.009]
[1745544431130,1.12679663,603.21,602.2,1.009]
[1745544431831,1.12679663,603.2,602.2,1.009]
[1745544432325,1.12679663,603.19,602.2,1.009]
[1745544432727,1.12679663,603.18,602.2,1.009]
[1745544433229,1.12679663,603.17,602.2,1.009]
[1745544434132,1.12679663,603.16,602.2,1.009]
[1745544435034,1.12679663,603.15,602.2,1.009]
[1745544435634,1.12679663,603.14,602.2,1.009]
[1745544435834,1.12679663,603.13,602.2,1.009]
[1745544436233,1.12679663,603.12,602.2,1.009]
[1745544436634,1.12679663,603.11,602.2,1.009]
[1745544437131,1.12679663,603.1,602.2,1.009]
[1745544437634,1.12679663,603.09,602.2,1.009]
[1745544438234,1.12679663,603.08,602.2,1.009]
[1745544438635,1.12679663,603.07,602.2,1.009]
[1745544439134,1.25637758,603.99,602.2,1.009]
[1745544439135,1.12679663,603.06,602.2,1.009]
[1745544439335,1.12679663,603.05,602.2,1.009]
[1745544439939,1.12679663,603.04,602.2,1.009]
[1745544440133,1.12679663,603.03,602.2,1.009]
[1745544440535,1.12679663,603.02,602.2,1.009]
[1745544440739,1.12679663,603.01,602.2,1.009]
[1745544441042,1.12679663,603.0,602.2,1.009]
[1745544442038,1.12679663,602.99,602.2,1.009]
[1745544442438,1.12679663,602.98,602.2,1.009]
[1745544442940,1.12679663,602.97,602.2,1.009]
[1745544443839,1.12679663,602.96,602.2,1.009]
[1745544444340,1.12679663,602.95,602.2,1.009]
[1745544444937,1.12679663,602.94,602.2,1.009]
[1745544445434,1.12679663,602.93,602.2,1.009]
[1745544445638,1.12679663,602.92,602.2,1.009]
[1745544445838,1.12679663,602.91,602.2,1.009]
[1745544446234,1.12679663,602.9,602.2,1.009]
[1745544446539,1.12679663,602.89,602.2,1.009]
[1745544447439,1.12679663,602.88,602.2,1.009]
[1745544447841,1.12679663,602.87,602.2,1.009]
[1745544448337,1.12679663,602.86,602.2,1.009]
[1745544448944,1.12679663,602.85,602.2,1.009]
[1745544449635,1.12679663,602.84,602.2,1.009]
[1745544450239,1.12679663,602.83,602.2,1.009]
[1745544450639,1.12679663,602.82,602.2,1.009]
[1745544451137,1.12679663,602.81,602.2,1.009]
[1745544452041,1.12679663,602.8,602.2,1.009]
[1745544452744,1.12679663,602.79,602.2,1.009]
[1745544452940,1.12679663,602.78,602.2,1.009]
[1745544453542,1.12679663,602.77,602.2,1.009]
[1745544454043,0.28889018,603.39,602.2,1.009]
[1745544454044,1.12679663,602.76,602.2,1.009]
[1745544454243,1.12679663,602.75,602.2,1.009]
[1745544454745,1.12679663,602.74,602.2,1.009]
[1745544455443,1.12679663,602.73,602.2,1.009]
[1745544455843,1.12679663,602.73,602.05,2.098]
[1745544456043,1.12679663,602.72,602.06,0.30487749]
[1745544456738,2.15313798,604.29,602.06,0.30487749]
[1745544456739,1.12679663,602.71,602.06,0.30487749]
[1745544456938,1.12679663,602.7,602.06,0.30487749]
[1745544457138,1.12679663,602.7,602.05,2.098]
[1745544457445,1.12679663,602.69,602.05,2.098]
[1745544458040,1.12679663,602.68,602.05,2.098]
[1745544458643,1.12679663,602.67,602.05,2.098]
[1745544459143,1.12679663,602.66,602.05,2.098]
[1745544459842,1.12679663,602.65,602.05,2.098]
[1745544460438,1.12679663,602.64,602.05,2.098]
[1745544460843,1.12679663,602.63,602.05,2.098]
[1745544461144,1.25637758,603.7,602.05,2.098]
[1745544461145,1.12679663,602.62,602.05,2.098]
[1745544461444,1.12679663,602.61,602.05,2.098]
[1745544462039,1.12679663,602.6,602.05,2.098]
[1745544462646,1.12679663,602.59,602.05,2.098]
[1745544463748,1.12679663,602.58,602.05,2.098]
[1745544464140,1.12679663,602.57,602.05,2.098]
[1745544464643,1.12679663,602.56,602.05,2.098]
[1745544465450,1.12679663,602.55,602.05,2.098]
[1745544465845,1.12679663,602.54,602.05,2.098]
[1745544466250,1.12679663,602.53,602.05,2.098]
[1745544466452,1.12679663,602.52,602.05,2.098]
[1745544466746,1.12679663,602.51,602.05,2.098]
[1745544467253,1.12679663,602.5,602.05,2.098]
[1745544467653,1.12679663,602.49,602.05,2.098]
[1745544468151,1.12679663,602.48,602.05,2.098]
[1745544468755,1.12679663,602.47,602.05,2.098]
[1745544468955,1.12679663,602.46,602.05,2.098]
[1745544469758,1.12679663,602.45,602.05,2.098]
[1745544470257,1.12679663,602.44,602.05,2.098]
[1745544471759,1.12679663,602.43,602.05,2.098]
[1745544472057,1.12679663,602.42,602.05,2.098]
[1745544472459,1.12679663,602.41,602.05,2.098]
[1745544473053,1.12679663,602.4,602.05,2.098]
[1745544473257,1.12679663,602.4,602.05,1.036]
[1745544473459,1.12679663,602.39,602.05,1.036]
[1745544474461,1.12679663,602.38,602.05,1.036]
[1745544474759,1.12679663,602.37,602.05,1.036]
[1745544475060,1.12679663,602.37,601.92,1.214]
[1745544475254,1.12679663,602.36,601.92,1.214]
[1745544475957,1.12679663,602.35,601.92,1.214]
[1745544476555,1.12679663,602.34,601.92,1.214]
[1745544477059,1.12679663,602.33,601.92,1.214]
[1745544477562,1.12679663,602.32,601.92,1.214]
[1745544477953,1.12679663,602.31,601.92,1.214]
[1745544478155,1.25637758,604.06,601.92,1.214]
[1745544478659,0.28879309,604.05,601.92,1.214]
[1745544478860,0.28879309,604.05,601.92,2.1]
[1745544479058,1.12364989,604.04,601.92,2.1]
[1745544479259,1.12364989,604.03,601.92,2.1]
[1745544479662,1.12364989,604.02,601.92,2.1]
[1745544480055,1.12364989,604.01,601.92,2.1]
[1745544480357,1.12364989,604.0,601.92,2.1]
[1745544480758,1.12364989,603.99,601.92,2.1]
[1745544481365,1.12364989,603.98,601.92,2.1]
[1745544481766,1.41244777,603.98,601.92,3.491]
[1745544482264,1.12364989,603.97,601.92,3.491]
[1745544482767,1.12364989,603.97,601.93,0.30487053]
[1745544482970,1.12364989,603.96,601.93,0.30487053]
[1745544483271,1.12364989,603.95,601.93,0.30487053]
[1745544483571,0.28879788,603.98,601.93,0.30487053]
[1745544483572,1.25637758,604.06,601.93,0.30487053]
[1745544483870,1.12436237,603.94,601.93,0.30487053]
[1745544484672,0.28880028,603.93,601.93,0.30487053]
[1745544484871,1.41316265,603.93,601.93,0.30487053]
[1745544485264,1.12436237,603.92,601.93,0.30487053]
[1745544485770,1.12436237,603.91,601.93,0.30487053]
[1745544485972,1.25637758,603.64,601.93,0.30487053]
[1745544486365,1.12436237,603.63,601.93,0.30487053]
[1745544486567,1.12436237,603.63,601.92,0.886]
[1745544486771,1.12436237,603.62,601.93,0.30487639]
[1745544487372,1.12436237,603.61,601.93,0.30487639]
[1745544487764,1.413201,603.61,601.89,0.30487639]
[1745544487967,1.413201,603.61,601.94,0.30487639]
[1745544488165,1.12436237,603.6,601.95,0.30487639]
[1745544488366,1.12436237,603.6,601.89,0.30487639]
[1745544488569,1.12436237,603.59,601.9,0.30487639]
[1745544488770,1.12436237,603.58,601.9,1.154]
[1745544488970,1.12436237,603.58,601.91,0.30487639]
[1745544489373,1.12436237,603.57,601.91,0.30487639]
[1745544489771,1.12436237,603.56,601.91,0.30487639]
[1745544489975,1.12436237,603.56,601.9,1.154]
[1745544490170,1.12436237,603.56,601.92,0.30487374]
[1745544490369,1.12436237,603.55,601.93,0.30487374]
[1745544490676,1.12436237,603.55,601.91,0.30487374]
[1745544490876,1.41321179,603.54,601.92,0.30487374]
[1745544491077,1.41321179,603.54,601.91,0.30487374]
[1745544491372,1.12436237,603.53,601.92,0.30487374]
[1745544491572,1.12436237,603.53,601.9,1.154]
[1745544491775,1.12436237,603.52,601.93,0.30487355]
[1745544491973,1.12436237,603.51,601.94,0.30487355]
[1745544492276,1.12436237,603.51,601.81,0.30487355]
[1745544492477,1.12436237,603.5,601.82,0.30487355]
[1745544492678,1.12436237,603.5,601.81,0.30487355]
[1745544492871,1.12436237,603.49,601.82,0.30487355]
[1745544493172,1.12436237,603.48,601.81,0.30487355]
[1745544493476,1.12436237,603.48,601.82,0.30487355]
[1745544493676,1.12436237,603.47,601.81,0.30487355]
[1745544493877,1.41322258,603.47,601.82,0.30487355]
[1745544494074,1.41322258,603.47,601.81,0.30487355]
[1745544494274,1.12436237,603.46,601.81,0.30487355]
[1745544494575,1.12436237,603.45,601.81,0.30487355]
[1745544494774,1.12436237,603.45,601.8,0.30487355]
[1745544495178,1.12436237,603.44,601.8,0.30487355]
[1745544495678,1.12436237,603.43,601.8,0.30487355]
[1745544496279,1.12436237,603.42,601.8,0.30487355]
[1745544496579,1.12436237,603.42,601.81,0.30487075]
[1745544496780,1.12436237,603.41,601.8,0.30487075]
[1745544497182,1.12436237,603.41,601.89,1.0564898]
[1745544497375,1.12436237,603.4,601.89,1.0564898]
[1745544497681,1.12436237,603.39,601.9,0.30487075]
[1745544497981,1.12436237,603.38,601.89,1.0564898]
[1745544498181,1.12436237,603.38,601.9,0.30487075]
[1745544498383,1.12436237,603.37,601.9,0.30487075]
[1745544499384,1.12436237,603.36,601.9,0.30487075]
[1745544499585,1.12436237,603.36,601.89,1.0564898]
[1745544499785,1.12436237,603.35,601.9,0.30486858]
[1745544499980,1.12436237,603.35,601.87,0.30486858]
[1745544500186,1.12436237,603.35,601.88,0.30486858]
[1745544500386,1.12436237,603.35,601.87,0.30486858]
[1745544500686,1.12436237,603.34,601.87,0.30486858]
[1745544501288,1.12436237,603.33,601.87,0.30486858]
[1745544501683,1.12436237,603.32,601.87,0.30486858]
[1745544502188,1.12436237,603.31,601.94,1.0564898]
[1745544502387,1.12436237,603.3,601.95,0.30486858]
[1745544503188,1.12436237,603.29,601.95,0.30486858]
[1745544503487,1.12436237,603.28,601.95,0.30486858]
[1745544503889,1.12436237,603.27,601.95,0.30486858]
[1745544504891,1.12436237,603.26,601.95,0.30486858]
[1745544505391,1.12436237,603.25,601.95,0.30486858]
[1745544505789,1.12436237,603.25,601.94,1.0564898]
[1745544505994,1.12436237,603.24,601.95,0.30488396]
[1745544506189,1.12436237,603.23,601.95,0.30488396]
[1745544506793,1.12436237,603.22,601.95,0.30488396]
[1745544507193,1.12436237,603.22,601.96,0.30488396]
[1745544507390,1.12436237,603.22,601.93,1.0564898]
[1745544507589,1.12436237,603.21,601.94,0.30488676]
[1745544508097,1.12436237,603.2,601.94,0.30488676]
[1745544508495,1.12436237,603.19,601.94,0.30488676]
[1745544509196,1.12436237,603.18,601.94,0.30488676]
[1745544509592,1.12436237,603.17,601.94,0.30488676]
[1745544509796,1.12436237,603.17,601.96,1.0564898]
[1745544509990,1.12436237,603.17,601.97,0.30488676]
[1745544510194,1.12436237,603.16,601.97,0.30488676]
[1745544510597,1.12436237,603.15,601.96,1.0564898]
[1745544511693,1.12436237,603.14,601.96,1.0564898]
[1745544512195,1.12436237,603.13,601.96,1.0564898]
[1745544512697,1.12436237,603.12,601.81,1.0564898]
[1745544513591,1.12436237,603.11,601.81,1.0564898]
[1745544513897,1.12436237,603.1,601.81,1.0564898]
[1745544514097,1.12436237,603.09,601.81,1.0564898]
[1745544514291,1.12436237,603.08,601.81,1.0564898]
[1745544514995,1.12436237,603.07,601.81,1.0564898]
[1745544515296,1.12436237,603.06,601.45,0.28896454]
[1745544515491,1.12436237,603.06,601.46,0.30497066]
[1745544515797,1.12436237,603.05,601.46,0.30497066]
[1745544516297,1.12436237,603.04,601.46,0.30497066]
[1745544516695,1.12436237,603.04,601.45,0.28896454]
[1745544516891,1.12436237,603.03,601.46,0.30499005]
[1745544517591,1.12436237,603.02,601.46,0.30499005]
[1745544518297,1.12436237,603.01,601.45,0.28896454]
[1745544518498,1.12436237,603.0,601.46,0.30498969]
[1745544519599,1.12436237,603.0,601.47,0.30498969]
[1745544519899,1.12436237,602.99,601.48,0.3049952]
[1745544520099,1.12436237,602.99,601.36,0.3049952]
[1745544520399,1.12436237,602.98,601.37,0.3049952]
[1745544520596,1.12436237,602.98,601.36,0.3049952]
[1745544520802,1.12436237,602.98,601.37,0.59403775]
[1745544521098,1.12436237,602.98,601.38,0.3049952]
[1745544521301,1.12436237,602.97,601.38,0.3049952]
[1745544521701,1.12436237,602.96,601.38,0.3049952]
[1745544522204,1.12436237,602.95,601.38,0.3049952]
[1745544522401,1.12436237,602.94,601.38,0.3049952]
[1745544522600,1.12436237,602.94,601.25,0.3049952]
[1745544522798,1.12436237,602.94,601.37,0.28902814]
[1745544522998,1.12436237,602.94,601.24,1.0564898]
[1745544523201,1.12436237,602.93,601.25,0.30497987]
[1745544523397,1.12436237,602.93,601.37,0.28904255]
[1745544523603,1.12436237,602.93,601.38,0.30497987]
[1745544523807,1.12436237,602.93,601.37,0.28904495]
[1745544524001,1.12436237,602.92,601.38,0.30497987]
[1745544524405,1.12436237,602.91,601.38,0.30497987]
[1745544524701,1.12436237,602.91,601.39,0.30497936]
[1745544524906,1.12436237,602.91,601.38,0.30497936]
[1745544525105,1.12436237,602.9,601.38,0.30497936]
[1745544525405,1.12436237,602.89,601.38,0.30497936]
[1745544526005,1.12436237,602.88,601.38,0.30497936]
[1745544526201,1.12436237,602.88,601.39,0.30497897]
[1745544526405,1.12436237,602.87,601.38,0.30497897]
[1745544526606,1.12436237,602.86,601.39,0.30497897]
[1745544526802,1.12436237,602.86,601.38,0.30497897]
[1745544527000,1.12436237,602.86,601.39,0.30497897]
[1745544527305,1.12436237,602.85,601.4,0.30497897]
[1745544527505,1.12436237,602.85,601.38,0.30497897]
[1745544527801,0.28902694,603.17,601.38,0.30497897]
[1745544527802,1.12436237,602.84,601.38,0.30497897]
[1745544528604,1.12436237,602.83,601.38,0.30497897]
[1745544529007,1.12436237,602.82,601.38,0.30497897]
[1745544529207,1.12436237,602.81,601.38,0.30497897]
[1745544530009,1.12436237,602.8,601.38,0.30497897]
[1745544530307,1.12436237,602.79,601.38,0.30497897]
[1745544530605,1.12436237,602.78,601.38,0.30497897]
[1745544530911,1.12436237,602.78,601.37,0.28904495]
[1745544531110,1.12436237,602.77,601.38,0.3049649]
[1745544531707,1.12436237,602.76,601.33,0.3049649]
[1745544531903,1.12436237,602.76,601.34,0.3049649]
[1745544532109,1.12436237,602.75,601.37,1.0564898]
[1745544532310,1.12436237,602.75,601.38,0.3049649]
[1745544532609,1.12436237,602.74,601.39,0.30496042]
[1745544532807,1.12436237,602.74,601.38,0.30496042]
[1745544533106,1.12436237,602.73,601.38,0.30496042]
[1745544533710,1.12436237,602.72,601.38,0.30496042]
[1745544533910,1.25637758,603.88,601.38,0.30496042]
[1745544533911,1.12436237,602.71,601.38,0.30496042]
[1745544534103,1.25637758,603.88,601.37,1.34553235]
[1745544534104,1.12436237,602.7,601.39,0.30496463]
[1745544534306,1.12436237,602.7,601.39,1.0564898]
[1745544534509,1.12436237,602.7,601.4,0.30496463]
[1745544534912,1.12436237,602.69,601.4,0.30496463]
[1745544535509,1.12436237,602.68,601.4,0.30496463]
[1745544535714,1.12436237,602.68,601.41,0.30496286]
[1745544535908,1.12436237,602.68,601.42,0.30496286]
[1745544536107,1.12436237,602.68,601.39,1.0564898]
[1745544536108,1.12436237,602.67,601.4,0.30496286]
[1745544536311,1.12436237,602.67,601.41,0.30496286]
[1745544536512,1.12436237,602.66,601.4,0.30496286]
[1745544537014,1.12436237,602.65,601.4,0.30496286]
[1745544537308,1.12436237,602.64,601.41,0.30496081]
[1745544537616,1.12436237,602.63,601.42,0.30496081]
[1745544537814,1.12436237,602.63,601.4,0.30496081]
[1745544538015,1.12436237,602.63,601.42,1.0564898]
[1745544538215,1.12436237,602.62,601.43,0.30496081]
[1745544538511,1.12436237,602.61,601.43,0.30496081]
[1745544539017,1.12436237,602.6,601.43,0.30496081]
[1745544539819,1.12436237,602.59,601.43,0.30496081]
[1745544540320,1.12436237,602.58,601.42,1.0564898]
[1745544540522,1.12436237,602.58,601.43,0.30496803]
[1745544540720,1.12436237,602.57,601.43,0.30496803]
[1745544541118,1.12436237,602.56,601.43,0.30496803]
[1745544541322,1.12436237,602.56,601.42,1.0564898]
[1745544541615,2.15313798,604.59,601.01,1.811]
[1745544541616,1.12436237,602.55,601.46,1.0564898]
[1745544541915,1.12436237,602.55,601.47,0.3049683]
[1745544542115,1.12436237,602.54,601.47,0.3049683]
[1745544542622,1.12436237,602.53,601.46,1.0564898]
[1745544542817,1.12436237,602.52,601.47,0.30497486]
[1745544543018,1.12436237,602.52,601.48,0.30498038]
[1745544543317,1.12436237,602.51,601.49,0.30498038]
[1745544543522,1.12436237,602.51,601.47,0.30498038]
[1745544543821,1.12436237,602.51,601.54,1.0564898]
[1745544544017,1.12436237,602.5,601.55,0.30498038]
[1745544544520,1.12436237,602.5,601.54,1.0564898]
[1745544544721,1.12436237,602.49,601.55,0.30499482]
[1745544545122,1.12436237,602.48,601.55,0.30499482]
[1745544545617,1.12436237,602.47,601.55,0.30499482]
[1745544546021,1.12436237,602.47,601.54,1.0564898]
[1745544546221,1.12436237,602.47,601.28,1.0564898]
[1745544546222,1.12436237,602.46,601.62,1.0564898]
[1745544546418,1.12436237,602.46,601.63,0.30504622]
[1745544546722,1.12436237,602.45,601.63,0.30504622]
[1745544547321,1.12436237,602.44,601.63,0.30504622]
[1745544547624,1.12436237,602.44,601.62,1.0564898]
[1745544547825,1.12436237,602.43,601.63,0.3050538]
[1745544548222,1.12436237,602.42,601.63,0.3050538]
[1745544548624,1.12436237,602.42,601.5,0.3050538]
[1745544548818,1.12436237,602.42,601.51,0.3050538]
[1745544549017,1.12436237,602.41,601.5,0.3050538]
[1745544549220,1.12436237,602.41,601.51,0.3050538]
[1745544549525,1.12436237,602.4,601.52,0.3050538]
[1745544549824,1.12436237,602.39,601.53,0.3050538]
[1745544550126,1.25637758,603.3,601.49,1.0564898]
[1745544550127,1.12436237,602.38,601.54,0.3050538]
[1745544550323,1.12436237,602.38,601.5,0.3050538]
[1745544550522,1.12436237,602.37,601.51,0.3050538]
[1745544550720,1.12436237,602.37,601.44,0.3050538]
[1745544550920,1.12436237,602.37,601.45,0.30507607]
[1745544551119,1.12436237,602.36,601.46,0.30507607]
[1745544551321,1.12436237,602.36,601.44,0.30507607]
[1745544551622,1.12436237,602.36,601.45,0.30507607]
[1745544551920,1.12436237,602.35,601.46,0.30507607]
[1745544552124,1.12436237,602.34,601.44,0.30507607]
[1745544552624,1.12436237,602.33,601.45,0.30507607]
[1745544552821,1.12436237,602.33,601.35,0.30507607]
[1745544553222,1.12436237,602.32,601.35,0.30507607]
[1745544553422,1.12436237,602.31,601.35,0.30507607]
[1745544554118,1.12436237,602.3,601.35,0.30507607]
[1745544554319,1.12436237,602.29,601.35,0.30507607]
[1745544554625,1.12436237,602.28,601.35,0.30507607]
[1745544554926,1.12436237,602.28,601.36,0.30507607]
[1745544555119,1.12436237,602.28,601.33,0.30507607]
[1745544555320,1.12436237,602.28,601.34,0.30507607]
[1745544555521,1.12436237,602.27,601.32,1.0564898]
[1745544555724,1.12436237,602.27,601.33,0.30507341]
[1745544556126,1.12436237,602.26,601.33,0.30507341]
[1745544556725,1.12436237,602.25,601.33,0.30507341]
[1745544557228,1.12436237,602.24,601.33,0.30507341]
[1745544557722,1.12436237,602.23,601.33,0.30507341]
[1745544557921,1.12436237,602.23,601.34,0.30507341]
[1745544558226,1.12436237,602.23,601.35,0.30507341]
[1745544558422,1.12436237,602.23,601.3,0.30507341]
[1745544558725,1.12436237,602.22,601.31,0.30512345]
[1745544558923,1.12436237,602.22,601.3,0.30512345]
[1745544559130,1.12436237,602.21,601.31,0.30512345]
[1745544559428,1.12436237,602.2,601.32,0.30512345]
[1745544559628,1.12436237,602.2,601.3,0.30512345]
[1745544559829,1.12436237,602.2,601.31,0.30512345]
[1745544560029,1.12436237,602.19,601.32,0.30512345]
[1745544560223,1.12436237,602.19,601.3,0.30512345]
[1745544560425,1.12436237,602.19,601.31,0.30512345]
[1745544560727,1.12436237,602.18,601.32,0.30512345]
[1745544560925,1.12436237,602.17,601.13,0.30512345]
[1745544561331,1.12436237,602.16,601.13,0.30512345]
[1745544561731,1.12436237,602.16,601.06,0.30512345]
[1745544562131,1.12436237,602.15,601.06,0.30512345]
[1745544562528,1.12436237,602.14,601.06,0.30512345]
[1745544562733,1.12436237,602.13,601.07,0.28922993]
[1745544562933,1.12436237,602.13,601.08,0.30512345]
[1745544563233,1.12436237,602.12,601.08,0.30512345]
[1745544563936,1.12436237,602.11,601.08,0.30512345]
[1745544564434,1.12436237,602.1,601.08,0.30512345]
[1745544564931,1.12436237,602.1,601.07,0.28922993]
[1745544565130,1.12436237,602.1,601.08,0.30511196]
[1745544565333,1.12436237,602.09,601.08,0.30511196]
[1745544565534,1.12436237,602.08,601.08,0.30511196]
[1745544566135,1.12436237,602.07,601.08,0.30511196]
[1745544566436,1.12436237,602.07,601.07,0.28922993]
[1745544566629,1.12436237,602.07,601.08,0.30511169]
[1745544566839,1.12436237,602.06,601.08,0.30511169]
[1745544567242,1.12436237,602.05,601.08,0.30511169]
[1745544567644,1.12436237,602.04,601.08,0.30511169]
[1745544568046,1.12436237,602.03,601.07,0.28922993]
[1745544568249,1.12436237,602.03,601.08,0.30511475]
[1745544568446,1.12436237,602.02,601.08,0.30511475]
[1745544568846,1.12436237,602.02,601.09,0.30511475]
[1745544569046,1.12436237,602.02,601.07,0.28922993]
[1745544569047,1.12436237,602.02,601.1,0.30511475]
[1745544569349,1.12436237,602.01,601.11,0.30511475]
[1745544569546,1.12436237,602.01,601.12,0.30511475]
[1745544569746,1.12436237,602.01,601.13,0.30511475]
[1745544569946,1.12436237,602.0,601.08,0.30511475]
[1745544570149,1.12436237,602.0,601.07,0.28922993]
[1745544570150,1.12436237,602.0,601.13,1.0564898]
[1745544570349,1.12436237,601.99,601.14,0.30511475]
[1745544570951,1.12436237,601.98,601.14,0.30511475]
[1745544571149,1.12436237,601.98,601.13,1.0564898]
[1745544571349,1.12436237,601.97,601.14,0.30510987]
[1745544572049,1.12436237,601.96,601.14,0.30510987]
[1745544572549,1.12436237,601.95,601.15,0.30510987]
[1745544572753,1.12436237,601.95,601.1,0.30510987]
[1745544572954,1.12436237,601.95,601.11,0.30510987]
[1745544573149,1.12436237,601.94,601.1,0.30510987]
[1745544573353,1.12436237,601.94,601.11,0.30510987]
[1745544573648,1.12436237,601.93,601.12,0.30510987]
[1745544573853,1.12436237,601.93,601.1,0.30510987]
[1745544574054,1.12436237,601.93,601.11,0.30510987]
[1745544574255,1.12436237,601.93,601.1,1.0564898]
[1745544574459,1.12436237,601.92,601.11,0.30510776]
[1745544575051,1.12436237,601.91,601.11,0.30510776]
[1745544575550,1.25637758,603.64,601.11,0.30510776]
[1745544575951,1.12369943,603.63,601.11,0.30510776]
[1745544576154,1.25637758,603.58,601.12,1.0564898]
[1745544576351,1.12369943,603.57,601.13,0.30510776]
[1745544576655,1.12369943,603.56,601.13,0.30510776]
[1745544577254,1.25637758,603.58,601.13,0.30510776]
[1745544577255,1.12369943,603.55,601.13,0.30510776]
[1745544577751,1.41274558,603.54,601.13,0.30510776]
[1745544578156,1.12369943,603.53,601.13,0.30510776]
[1745544578662,1.12369943,603.52,601.14,1.0564898]
[1745544578857,1.12369943,603.52,601.15,0.30510776]
[1745544579057,1.12369943,603.51,601.15,0.30510776]
[1745544579359,1.12369943,603.51,601.15,1.30610776]
[1745544579659,0.28904855,603.5,601.16,0.30510776]
[1745544579857,1.12369943,603.49,601.16,0.30510776]
[1745544580256,1.12369943,603.48,601.16,0.30510776]
[1745544580852,1.12369943,603.47,601.16,0.30510776]
[1745544581353,1.12369943,603.46,601.16,0.30510776]
[1745544581559,2.38007701,603.45,601.25,1.0564898]
[1745544581759,2.38007701,603.45,601.26,0.30510776]
[1745544581956,2.38007701,603.45,601.26,1.49010776]
[1745544582261,2.38007701,603.45,601.27,0.30510776]
[1745544582560,1.12369943,603.44,601.27,0.30510776]
[1745544583055,1.12369943,603.43,601.27,0.30510776]
[1745544583562,1.12369943,603.42,601.26,1.185]
[1745544583758,1.12369943,603.42,601.27,0.3051069]
[1745544583958,1.12369943,603.41,601.27,0.3051069]
[1745544584861,1.25637758,603.45,601.27,0.3051069]
[1745544584862,1.12369943,603.4,601.27,0.3051069]
[1745544585062,1.25637758,603.27,601.35,1.0564898]
[1745544585356,1.25637758,603.27,601.36,0.3051069]
[1745544585757,1.41275158,603.26,601.36,0.3051069]
[1745544586161,1.12369943,603.25,601.36,0.3051069]
[1745544587463,1.12369943,603.24,601.34,0.3051069]
[1745544587763,1.12369943,603.24,601.35,0.3051069]
[1745544587958,1.12369943,603.23,601.36,0.3051069]
[1745544588164,1.12369943,603.23,601.33,1.0564898]
[1745544588361,1.12369943,603.23,601.34,0.3051045]
[1745544588558,1.12369943,603.22,601.34,0.3051045]
[1745544589265,1.12369943,603.21,601.34,0.3051045]
[1745544589760,1.41275398,603.2,601.34,0.3051045]
[1745544590059,1.41275398,603.2,601.34,1.3615943]
[1745544590363,1.41275398,603.2,601.35,0.3051045]
[1745544590364,1.12369943,603.19,601.35,0.3051045]
[1745544590758,1.12369943,603.18,601.35,0.3051045]
[1745544591367,1.12369943,603.17,601.35,0.3051045]
[1745544591866,1.12369943,603.16,601.35,0.3051045]
[1745544592367,1.12369943,603.15,601.35,0.3051045]
[1745544592569,1.12369943,603.15,601.36,1.071]
[1745544592864,1.12369943,603.14,601.37,0.3051045]
[1745544593268,1.12369943,603.13,601.37,0.3051045]
[1745544593768,1.12369943,603.12,601.37,0.3051045]
[1745544593967,1.12369943,603.11,601.37,0.3051045]
[1745544594269,1.12369943,603.1,601.37,0.3051045]
[1745544594570,1.12369943,603.1,601.38,0.30510908]